Cogmind - Beta 11.1 @@@ ROGUE MODE // 2022.04.29 @ 16:39:24 Player: Runia Result: Destroyed by D-53 Grenadier with Mini Grenade Launcher Performance ------------- Evolutions (0) 0 Regions Visited (2) 400 Robots Destroyed (36) 180 Value Destroyed (682) 682 Prototype IDs (3) 60 Alien Tech Used (0) 0 Bonus (0) 0 TOTAL SCORE: 1322 Bonus ------- None Cogmind --------- Core Integrity 0/250 Matter 399/400 Energy 100/100 System Corruption 0% Temperature Cool (0) Movement Rolling (140) Ox4 Location -10/Mines Parts ------- > --- POWER (1) -------- (None) > --- PROPULSION (2) --- Aluminum Leg Wheel > --- UTILITY (2) ------ High-capacity Storage Unit Medium Matter Pod > --- WEAPON (2) ------- Light Assault Rifle Light Assault Rifle > --- INVENTORY (20) --- Light Ion Engine Wheel Wheel Wheel Wheel Assault Rifle Assault Rifle Light Assault Rifle Peak State ------------ > --- POWER ------------ Ion Engine > --- PROPULSION ------- Light Treads Light Treads > --- UTILITY ---------- Small Storage Unit Large Storage Unit > --- WEAPON ----------- Medium Laser Assault Rifle > --- INVENTORY -------- Light Ion Engine Light Assault Rifle [Rating: 7] Favorites ----------- Power Light Ion Engine Engine Light Ion Engine Propulsion Wheel Treads Light Treads Leg Aluminum Leg Wheel Wheel Flight Unit Flight Unit Utility Medium Matter Pod Storage Medium Matter Pod Weapon Assault Rifle Energy Gun Medium Laser Ballistic Gun Assault Rifle Slashing Weapon Mining Claw Build | -11 -10 -10 ------- Run | Scr Mat Min Slots Evolved . | . . . Power . | . . . Propulsion . | . . . Utility . | . . . Weapon . | . . . Parts Attached 22 | 2 20 . Power 1 | . 1 . Engine 1 | . 1 . Core . | . . . Reactor . | . . . Propulsion 8 | 2 6 . Treads 2 | 2 . . Leg 1 | . 1 . Wheel 3 | . 3 . Hover . | . . . Flight 2 | . 2 . Utility 3 | . 3 . Device . | . . . Storage 3 | . 3 . Processor . | . . . Hackware . | . . . Protection . | . . . Artifact . | . . . Weapon 10 | . 10 . Energy Gun . | . . . Energy Cannon . | . . . Ballistic Gun 9 | . 9 . Ballistic Cannon . | . . . Launcher . | . . . Special Weapon . | . . . Impact Weapon . | . . . Slashing Weapon 1 | . 1 . Piercing Weapon . | . . . Special Melee Weapon . | . . . Unidentified Prototypes . | . . . Parts Lost 5 | . 4 1 Power 1 | . . 1 Propulsion 3 | . 3 . Utility . | . . . Weapon 1 | . 1 . Highest Loss Streak 1 | . 1 1 To Critical Strikes . | . . . Average Slot Usage (%) 88 | . 87 100 Engine 14 | . 14 14 Treads 8 | . 9 . Leg 7 | . 7 14 Wheel 9 | . 8 14 Storage 21 | . 21 28 Energy Gun 1 | . 2 . Ballistic Gun 20 | . 19 28 Slashing Weapon 3 | . 3 . Naked Turns . | . . . Heaviest Build 47 | 14 47 47 Greatest Support 40 | 40 40 10 Greatest Overweight (x) 9 | . 9 4 Average Overweight (x) 2 | . 2 4 Largest Inventory Capacity 20 | 8 20 20 Average Capacity 16 | 8 16 20 Most Carried 9 | 6 9 8 Average Carried 5 | 2 4 7 Final Capacity 20 | 8 20 20 Final Carried 8 | 2 7 8 Class Distribution -------------------- 100% | Mutant Dominant Class ---------------- Mutant | -10/Materials Mutant | -10/Mines Resources | -11 -10 -10 ----------- Run | Scr Mat Min Matter Collected 880 | 226 650 4 Remotely . | . . . Salvage Created 1102 | 12 1074 16 Parts 76 | 3 70 3 Haulers Intercepted 1 | . 1 . Recyclers Shooed 3 | . 2 1 Parts Field Recycled . | . . . Retrieved Matter . | . . . Parts Self-Destructed . | . . . Prevented . | . . . Kills | -11 -10 -10 ------- Run | Scr Mat Min Combat Hostiles Destroyed 20 | . 20 . Melee 4 | . 4 . Guns 16 | . 16 . Classes Destroyed 9 | 1 8 . Worker 5 | . 5 . Builder 1 | . 1 . Tunneler 3 | 1 1 1 Hauler 1 | . 1 . Recycler 2 | . 2 . Operator 2 | . 2 . Watcher 2 | . 2 . Swarmer 5 | . 5 . Grunt 15 | . 15 . Best Kill Streak 4 | 1 4 1 Combat Bots Only 4 | . 4 . Max Kills in Single Turn 1 | 1 1 1 Gunslinging . | . . . Exploded . | . . . Melee 1 | . 1 . Uniques/NPCs Destroyed . | . . . Combat | -11 -10 -10 -------- Run | Scr Mat Min Damage Taken 1296 | . 983 313 Core 258 | . 181 77 Absorbed by Shields . | . . . Core Remaining (%) 100 | 100 . . Volleys Fired 89 | 2 82 5 Largest 2 | 2 2 2 Hottest 70 | 70 70 40 Shots Fired 178 | 4 164 10 Gun 178 | 4 164 10 Cannon . | . . . Launcher . | . . . Special . | . . . Kinetic 159 | 2 147 10 Thermal 19 | 2 17 . Explosive . | . . . Electromagnetic . | . . . Robot Hit Streak 13 | 1 13 2 Robot Miss Streak 3 | 1 3 3 Penetration Max . | . . . Secondary Targets 1 | . 1 . Max Gunslinging Chain 1 | . 1 . Shots Hit Robots 136 | 2 130 4 Core Hits 57 | 1 53 3 Critical Kills . | . . . Critical Parts Destroyed 1 | . 1 . Critical Strikes 2 | . 2 . Burn 1 | . 1 . Destroy 1 | . 1 . Melee Attacks 36 | . 36 . Impact . | . . . Slashing 36 | . 36 . Piercing . | . . . Sneak Attacks 6 | . 6 . Combat Hostiles 1 | . 1 . Follow-up Attacks . | . . . Damage Inflicted 2013 | 24 1956 33 Guns 1378 | 24 1321 33 Cannons . | . . . Explosions . | . . . Melee 635 | . 635 . Ramming . | . . . Kinetic 1240 | 24 1183 33 Thermal 138 | . 138 . Explosive . | . . . Electromagnetic . | . . . Impact . | . . . Slashing 635 | . 635 . Piercing . | . . . Highest Corruption . | . . . Average Corruption . | . . . Corruption Purged . | . . . Corruption Blocked . | . . . Overload Shots . | . . . Overflow Damage 20 | . 20 . Projectiles . | . . . Explosions . | . . . Melee 20 | . 20 . Knockbacks . | . . . Impact . | . . . Kinetic . | . . . Secondary . | . . . Self-Inflicted Damage . | . . . Shots . | . . . Rammed . | . . . Targets Rammed . | . . . Kicked . | . . . Crushed . | . . . Highest Temperature 156 | 18 156 . Average Temperature 61 | 10 66 . Received Heat Transfer 459 | . 459 . Siege Activations . | . . . Robots Corrupted . | . . . Combat Hostiles . | . . . Parts Fried . | . . . Impact Corruptions . | . . . Robots Melted . | . . . Combat Hostiles . | . . . Parts Melted 1 | . 1 . Heat Transferred 481 | . 481 . Parts Sabotaged . | . . . Parts Stolen . | . . . Parts Stripped . | . . . Power Chain Reactions . | . . . Missiles Intercepted . | . . . Alert | -11 -10 -10 ------- Run | Scr Mat Min Peak Influence 395 | 5 395 105 Initial 100 | . 3 100 Average 186 | 2 196 100 Maximum Alert Level 1 | . 1 . Low Security (%) 44 | 100 38 100 Level 1 55 | . 61 . Level 2 . | . . . Level 3 . | . . . Level 4 . | . . . Level 5 . | . . . High Security . | . . . Max Security . | . . . Squads Dispatched 7 | . 7 . Investigation 4 | . 4 . Extermination . | . . . Reinforcement 3 | . 3 . Assault . | . . . Garrison . | . . . Intercept . | . . . Searches Triggered . | . . . Construction Impeded . | . . . Haulers Reinforced . | . . . Active Scanning Responses . | . . . Cargo Convoy Interrupts . | . . . Stealth | -11 -10 -10 --------- Run | Scr Mat Min Distress Signals 2 | . 2 . Communications Jammed . | . . . Distress Signals . | . . . Times Spotted 44 | . 38 6 Peak Tracking Total 5 | . 5 4 Tactical Retreats 7 | . 7 . Traps | -11 -10 -10 ------- Run | Scr Mat Min Traps Triggered 5 | . 5 . Indirectly . | . . . Trap Hack Attempts . | . . . Triggered . | . . . Disarmed . | . . . Reprogrammed . | . . . Reused . | . . . Traps Extracted . | . . . Installed . | . . . Triggered . | . . . Machines | -11 -10 -10 ---------- Run | Scr Mat Min Machines Disabled . | . . . Max in Single Turn . | . . . Machines Sabotaged . | . . . Garrisons Compromised . | . . . Overloaded Fab Kills . | . . . Hacking | -11 -10 -10 --------- Run | Scr Mat Min Machines Accessed 7 | . 7 . Terminals 5 | . 5 . Fabricators . | . . . Repair Stations . | . . . Recycling Units 2 | . 2 . Scanalyzers . | . . . Garrison Access . | . . . Total Hacks 14 | . 14 . Successful 9 | . 9 . Failed 5 | . 5 . Catastrophic . | . . . Database Lockouts . | . . . Manual 6 | . 6 . Terminals 12 | . 12 . Fabricators . | . . . Repair Stations . | . . . Recycling Units 2 | . 2 . Scanalyzers . | . . . Garrison Access . | . . . Terminal Hacks 7 | . 7 . Robot Analysis 2 | . 2 . Prototype ID Bank 2 | . 2 . Locate Traps 1 | . 1 . Hauler Manifests 1 | . 1 . Zone Layout 1 | . 1 . Fabricator Hacks . | . . . Repair Station Hacks . | . . . Recycling Unit Hacks . | . . . Scanalyzer . | . . . Garrison Access Hacks . | . . . Unauthorized Hacks 2 | . 2 . Terminals . | . . . Fabricators . | . . . Repair Stations . | . . . Recycling Units 2 | . 2 . Tunnel 2 | . 2 . Scanalyzers . | . . . Garrison Access . | . . . Data Cores Recovered . | . . . Used . | . . . Hacking Detections 4 | . 4 . Full Trace Events 1 | . 1 . Feedback Events . | . . . Feedback Blocked . | . . . Robot Schematics Acquired . | . . . Robots Built . | . . . Authchips . | . . . Time . | . . . Total Robot Build Rating . | . . . Part Schematics Acquired . | . . . Parts Built . | . . . Authchips . | . . . Time . | . . . Total Part Build Rating . | . . . Parts Repaired . | . . . Time . | . . . Parts Recycled . | . . . Recycled Matter . | . . . Retrieved Matter . | . . . Retrieved Components . | . . . Parts Scanalyzed . | . . . Part Schematics Acquired . | . . . Parts Damaged . | . . . Bothacking | -11 -10 -10 ------------ Run | Scr Mat Min Used RIF Installer . | . . . Robots Hacked . | . . . Non-combat . | . . . Combat . | . . . Robot Hacks Applied . | . . . Relay Couplers Released . | . . . Fabnet Peak Effective % . | . . . Robots Rewired . | . . . Allies Hacked . | . . . Hacks Repelled . | . . . Allies | -11 -10 -10 -------- Run | Scr Mat Min Total Allies 2 | . . 2 Largest Group 2 | . . 2 Highest-Rated Group 48 | . . 48 Highest-Rated Ally 31 | . . 31 Total Orders . | . . . Ally Attacks 1 | . . 1 Total Damage 20 | . . 20 Kills 1 | . . 1 Allies Corrupted . | . . . Allies Melted . | . . . Intel | -11 -10 -10 ------- Run | Scr Mat Min Robot Analysis Total 2 | . 2 . Derelict Logs Recovered . | . . . Drone Launches . | . . . Drone Recoveries . | . . . Exploration | -11 -10 -10 ------------- Run | Scr Mat Min Turns Passed 2182 | 12 1967 203 Spaces Moved 1213 | 2 1076 135 Core 3 | . 3 . Treads 289 | 2 287 . Legs 1 | . 1 . Wheels 913 | . 778 135 Hover . | . . . Flight 7 | . 7 . Fastest Speed 110 | 160 110 140 Average Speed 139 | 160 139 140 Slowest Speed 600 | 160 600 140 Overloaded Moves . | . . . Propulsion Burnouts . | . . . Robots Hopped . | . . . Cave-ins Triggered . | . . . Exploration Rate (%) 45 | 2 98 36 Regions Visited 2 Branch Regions 1 Pre-discovered Areas 2 | . 2 . Known Exits Taken . | . . . Unknown Exits Taken 2 | 1 1 . Scrap Searched . | . . . Spaces Dug 1 | . 1 . Terrain Destroyed 1 | . 1 . Melee 1 | . 1 . Projectile . | . . . AOE . | . . . Terrain Rammed . | . . . Walls Destroyed . | . . . Machines Disabled . | . . . Actions | -11 -10 -10 --------- Run | Scr Mat Min Total 1467 | 9 1317 141 Wait 81 | . 81 . Move 1211 | 1 1075 135 Hop . | . . . Pick Up 14 | . 13 1 Fast Attach 11 | . 11 . Attach 8 | 2 6 . Detach . | . . . Swap 3 | . 3 . Drop 14 | 4 10 . Fire 89 | 2 82 5 Melee 36 | . 36 . Ram . | . . . Kick . | . . . Crush . | . . . Escape Stasis . | . . . Rewire . | . . . Trap . | . . . Miscellaneous . | . . . Route ------- -11/Scrapyard -10/Materials (discovered 4 exits: [*Mat x3] / [*Min]) -10/Mines (discovered 1 exit: [*Mat]) History --------- Turn | Location | Event 12 | -11/Scrapyard | Discovered new exit (range 1) 13 | -11/Scrapyard | Entered Materials 305 | -10/Materials | Build established: Mutant 340 | -10/Materials | Discovered new exit (range 9) 607 | -10/Materials | Discovered new exit (range 12) 862 | -10/Materials | Core integrity fell below 50% 1092 | -10/Materials | Discovered new exit (range 7) 1320 | -10/Materials | Discovered new exit (range 3) 1980 | -10/Materials | Entered Mines 2109 | -10/Mines | Discovered new exit (range 11) 2158 | -10/Mines | Assembled infested the area 2176 | -10/Mines | Core integrity fell below 20% 2183 | -10/Mines | Destroyed by D-53 Grenadier with Mini Grenade Launcher Last Messages --------------- DISCOVERED[-8/Materials] 01964_ ALERT: Suspicious activity at Recycling Unit M002. Dispatching Investigation squad. LOCATION=UNKNOWN GOAL=ESCAPE 01984_ K-01 Serf collects debris. 02035_ T-07 Excavator destroyed. 02037_ Acquired 4 matter. 02040_ Acquired Wheel. 02109_ EXIT=FOUND 02145_ A pair of derelicts emerge from the shadows: "We're, um, lost. You wouldn't happen to know the way out of here, would you?" 02158_ ALERT: Infestation in the mines, dispatching Demolisher response squad. 02171_ C-30 ARC bursts open, deploying its payload. 02171_ D-53 Grenadier unfolds itself. 02178_ U-05 Engineer lays Concrete. 02181_ Lgt. Ion Engine destroyed. 02181_ U-05 Engineer lays Concrete. 02183_ The unstable cave ceiling collapses. Map ----- +----------------------------------------------------+ | ???????????### #?# ###### #???????????? | | ???????????? """ ### #????# #???????????? | | ?????????????# """ ## #????# #???????????? | | ????????????## """ ## ###??# #?#####?????? | | ????????????# #??# #?# ###???? | | ????????????# ###### #??# #?# ##??? | | ????????????# ##????# #### ### #??? | | ????????????## #??????# #??? | | ?????????????###???????###### #??? | | ???????????????????????????## ##??? | | ???????????????????????????# #???? | | ????????????????? ???????# #???? | | ???????????????? ??????## ##??? | | ???????????????? ??????# ##?? | | ?????????????? ##???# #?? | | ??????????????? #???# ##### #?? | | ???????????????? ##??## ##???# #?? | | ????????????????# ##??####?????# #?? | | ?????????????????# s ##??????????# ###?? | | ??????????????????# ???????????# #???? | | ?????????????????## ???????????# ##??? | | ?????????????????# su ####????????# ##?? | | ????????????????## ###?????## ##? | | ????????????????# ####### < #? | | ????????????????# #? | | ############?## @ d ## #? | | #?# #########?# #? | | #?## #?????????? #? | | ???######## ### d% #??????????###? | | ??????????# a a #?????????????? | | ??????????# ### ##?????????????? | | ??????????##### ######???##??????????????? | | ??????????????###?????????????????????????? | | ??????????????????????????????????????????? | | | | | | | | | | | | | | | | | | | | | | | | | | | | | | | | | +----------------------------------------------------+ Best States ------------- Heat Dissipation 25 Energy Generation 10 Energy Capacity 250 Matter Stores 400 Matter Capacity 400 Sight Range 16 Terrain Scan Density 10 Evasion (%) 40 Recoil Reduction 2 Item Schematics ----------------- None Robot Schematics ------------------ None Fabricated ------------ Nothing Alien Tech Used ----------------- None Achievements -------------- None Challenges ------------ None Game ------ Seed DerelictTrapBeam Manual? 0 Play Time 00:12:21 Cumulative 613.2 hours Start 2022.04.29 @ 16:28:10 End 2022.04.29 @ 16:39:24 Sessions 1 Manual Loads 0 Difficulty Rogue Special Mode None Game No. 575 Rogue 575 Adventurer 0 Explorer 0 Win Type - Total 22 Types 10/4/4/1/1/0/1/1/0 Lore% 88 Gallery% 95 Achievement% 77 Wizard Run 0 Options --------- ASCII 0 Keyboard 0 Movement Mouse Keybinds 1 Fullscreen 2 Font 24/Smallcaps Map View 76x50 Tactical HUD 1 Map Filters NONE Filters NONE Steam 1 RUN: b65c9053-6cae-4586-906e-ca052297d3e5